Cogmind - Beta 15 @@@ ROGUE MODE // 2025.06.18 @ 15:24:54 Player: 7604 Result: Destroyed by 2M-U01(R) with Subdweller Laser Performance ------------- Evolutions (0) 0 Regions Visited (2) 400 Robots Destroyed (30) 150 Value Destroyed (654) 654 Prototype IDs (11) 220 Alien Tech Used (0) 0 Bonus (-85) -85 TOTAL SCORE: 1339 Bonus ------- Friendly Fire -85 Cogmind --------- Core Integrity 0/250 Matter 300/300 Energy 188/200 System Corruption 0% Temperature Cool (6) Movement Rolling (130) Ox2 Location -10/Subcaves Parts ------- > --- POWER (1) -------- Subdweller Power Source > --- PROPULSION (2) --- Subdweller Monowheel Subdweller Monowheel > --- UTILITY (2) ------ High-capacity Storage Unit Seismic Detector > --- WEAPON (2) ------- Subdweller Laser Flamer > --- INVENTORY (20) --- Ion Engine Light Treads Light Treads Subdweller Monowheel Flightbrick Heat Sink Medium Laser Medium Laser Subdweller Machine Gun Grenade Launcher Grenade Launcher Grenade Launcher Dirty Datajack (20) Datajack Mining Laser Multitool Peak State ------------ > --- POWER ------------ Subdweller Power Source > --- PROPULSION ------- Subdweller Monowheel Subdweller Monowheel > --- UTILITY ---------- High-capacity Storage Unit Seismic Detector > --- WEAPON ----------- Subdweller Laser Flamer > --- INVENTORY -------- Ion Engine Light Treads Light Treads Subdweller Monowheel Flightbrick Heat Sink Large Storage Unit Medium Laser Medium Laser Subdweller Machine Gun Grenade Launcher Grenade Launcher Grenade Launcher Dirty Datajack Datajack Mining Laser Multitool [Rating: 18] Favorites ----------- Power Light Ion Engine Engine Light Ion Engine Propulsion Light Treads Treads Light Treads Leg Aluminum Leg Wheel Subdweller Monowheel Utility Seismic Detector Device Seismic Detector Storage High-capacity Storage Unit Protection Light Armor Plating Weapon Medium Laser Energy Gun Medium Laser Energy Cannon Subdweller Beam Cannon Ballistic Gun Light Assault Rifle Launcher Grenade Launcher Special Weapon Flamer Build | -11 -10 -10 ------- Run | Yrd Mat Sub Slots Evolved . | . . . Power . | . . . Propulsion . | . . . Utility . | . . . Weapon . | . . . Parts Attached 21 | 1 9 11 Power 2 | . . 2 Engine 2 | . . 2 Core . | . . . Reactor . | . . . Propulsion 5 | . 3 2 Treads 3 | . 3 . Leg . | . . . Wheel 2 | . . 2 Hover . | . . . Flight . | . . . Utility 6 | 1 4 1 Device 3 | 1 2 . Storage 2 | . 2 . Processor . | . . . Hackware . | . . . Protection 1 | . . 1 Artifact . | . . . Weapon 8 | . 2 6 Energy Gun 3 | . 1 2 Energy Cannon 1 | . . 1 Ballistic Gun . | . . . Ballistic Cannon . | . . . Launcher 2 | . . 2 Special Weapon 2 | . 1 1 Impact Weapon . | . . . Slashing Weapon . | . . . Piercing Weapon . | . . . Special Melee Weapon . | . . . Unidentified Prototypes . | . . . Parts Lost 7 | . 1 6 Power 1 | . . 1 Propulsion 2 | . . 2 Utility 2 | . 1 1 Weapon 2 | . . 2 Highest Loss Streak 3 | . 1 3 To Critical Strikes . | . . . Average Backups 11 | 6 10 14 Power . | 1 1 . Propulsion 1 | 4 1 2 Utility 2 | . 2 2 Weapon 5 | 1 4 6 Tool/Special . | . . . Unused Backups 14 | . 6 8 Power . | . . . Propulsion 6 | . 4 2 Utility 2 | . 2 . Weapon 3 | . . 3 Tool/Special 3 | . . 3 Average Slot Usage (%) 98 | . 98 98 Engine 14 | . 14 14 Treads 20 | . 27 7 Wheel 7 | . . 19 Device 12 | . 12 11 Storage 14 | . 14 14 Energy Gun 15 | . 15 15 Energy Cannon 2 | . . 7 Ballistic Gun 8 | . 12 . Special Weapon 1 | . . 4 Peak Build Rating 18 | 7 8 18 Average Rating 9 | 6 7 12 On Entrance 7 | 6 7 8 Naked Turns . | . . . Heaviest Build 66 | 12 66 58 Greatest Support 40 | 20 40 40 Greatest Overweight (x) 2 | . 2 2 Average Overweight (x) . | . . 1 Largest Inventory Capacity 20 | 8 20 20 Average Capacity 18 | 8 18 20 Most Carried 20 | 6 13 20 Average Carried 12 | 6 10 15 Final Capacity 20 | 8 20 20 Final Carried 19 | 6 13 19 Class Distribution -------------------- 68% | Mutant 31% | Scavenger-Mutant Dominant Class ---------------- Mutant | -10/Materials Scavenger-Mutant | -10/Subcaves Resources | -11 -10 -10 ----------- Run | Yrd Mat Sub Matter Collected 647 | 212 125 310 Remotely . | . . . Salvage Created 889 | 16 576 297 Parts 58 | 4 42 12 Haulers Intercepted 2 | . 2 . Recyclers Shooed . | . . . Parts Field Recycled . | . . . Retrieved Matter . | . . . Parts Self-Destructed 2 | . . 2 Prevented . | . . . Kills | -11 -10 -10 ------- Run | Yrd Mat Sub Combat Hostiles Destroyed 22 | . 12 10 Guns 14 | . 12 2 Cannons 1 | . . 1 AOE 5 | . . 5 Classes Destroyed 8 | 1 5 2 Worker 1 | . 1 . Tunneler 2 | 1 1 . Hauler 2 | . 2 . Watcher 3 | . 3 . Swarmer 9 | . 6 3 Grunt 6 | . 6 . Artisan 1 | . . 1 Subdweller 7 | . . 7 Best Kill Streak 4 | 1 4 3 Combat Bots Only 3 | . 3 3 Max Kills in Single Turn 2 | 1 1 2 Gunslinging . | . . . Exploded 2 | . . 2 Melee . | . . . Uniques/NPCs Destroyed . | . . . Combat | -11 -10 -10 -------- Run | Yrd Mat Sub Hostile Shots Fired 96 | . 33 63 Missed 29 | . 10 19 Hits 67 | . 23 44 Projectile 67 | . 23 44 Critical Strikes 1 | . . 1 Damage Taken 1104 | . 245 859 Core 250 | . . 250 Absorbed by Shields . | . . . Core Remaining (%) 100 | 100 . . Volleys Fired 110 | 2 53 55 Largest 2 | 2 2 2 Hottest 150 | 70 100 150 Shots Fired 185 | 4 103 78 Gun 154 | 4 100 50 Cannon 12 | . . 12 Launcher 12 | . . 12 Special 7 | . 3 4 Kinetic 45 | 2 43 . Thermal 128 | 2 60 66 Explosive 12 | . . 12 Electromagnetic . | . . . Robot Hit Streak 33 | 2 9 33 Robot Miss Streak 6 | 1 6 1 Penetration Max . | . . . Secondary Targets 2 | . 2 . Max Gunslinging Chain 1 | . 1 . Shots Hit Robots 116 | 2 61 53 Core Hits 58 | 2 33 23 Critical Kills 1 | . . 1 Critical Parts Destroyed . | . . . Critical Strikes 10 | . 5 5 Burn 9 | . 5 4 Meltdown 1 | . . 1 Melee Attacks . | . . . Impact . | . . . Slashing . | . . . Piercing . | . . . Sneak Attacks . | . . . Combat Hostiles . | . . . Follow-up Attacks . | . . . Damage Inflicted 1984 | 23 683 1278 Guns 1126 | 23 666 437 Cannons 246 | . . 246 Explosions 563 | . . 563 Melee . | . . . Ramming 17 | . 17 . Kinetic 213 | 10 203 . Thermal 1191 | 13 463 715 Explosive 563 | . . 563 Electromagnetic . | . . . Impact . | . . . Slashing . | . . . Piercing . | . . . Highest Corruption . | . . . Average Corruption . | . . . Corruption Purged . | . . . Corruption Blocked . | . . . Overload Shots . | . . . Overflow Damage 5 | . . 5 Projectiles . | . . . Explosions 5 | . . 5 Melee . | . . . Knockbacks . | . . . Impact . | . . . Kinetic . | . . . Secondary . | . . . Self-Inflicted Damage 23 | . . 23 Shots 1 | . . 1 Rammed 4 | . 4 . Targets Rammed 4 | . 4 . Kicked . | . . . Crushed . | . . . Highest Temperature 158 | 40 158 45 Average Temperature 37 | 20 43 13 Received Heat Transfer 300 | . 90 210 Siege Activations . | . . . Martial Activations . | . . . Shielding Activations . | . . . Robots Disrupted . | . . . Combat Hostiles . | . . . Robots Corrupted . | . . . Combat Hostiles . | . . . Parts Fried . | . . . Impact Corruptions . | . . . Robots Melted 2 | . . 2 Combat Hostiles 2 | . . 2 Parts Melted 9 | . 4 5 Heat Transferred 3830 | 37 1739 2054 Parts Sabotaged . | . . . Parts Stolen . | . . . Parts Stripped . | . . . Power Chain Reactions . | . . . Alert | -11 -10 -10 ------- Run | Yrd Mat Sub Maximum Alert Level . | . . . Low Security (%) 100 | 100 100 . Level 1 . | . . . Level 2 . | . . . Level 3 . | . . . Level 4 . | . . . Level 5 . | . . . High Security . | . . . Max Security . | . . . Peak Influence 110 | 5 110 . Initial . | . . . Average 24 | 4 25 . Influence Increases 516 | 5 441 70 Destroy 0b10 Robot/C 300 | . 240 60 Destroy 0b10 Robot/NC 40 | 5 35 . Destroy Leader 60 | . 50 10 Successful Hack 26 | . 26 . Select Force Hacks 60 | . 60 . Lose Combat Pursuer 30 | . 30 . Influence Decreases 516 | 5 368 143 Entered New Map 36 | . . 36 Time Decay 463 | 5 358 100 Lost Part 17 | . 10 7 Squads Dispatched 2 | . 2 . Investigation 2 | . 2 . Extermination . | . . . Reinforcement . | . . . Assault . | . . . Garrison . | . . . Intercept . | . . . Searches Triggered . | . . . Construction Impeded . | . . . Haulers Reinforced . | . . . Active Scanning Responses . | . . . Cargo Convoy Interrupts . | . . . Stealth | -11 -10 -10 --------- Run | Yrd Mat Sub Distress Signals . | . . . Communications Jammed . | . . . Distress Signals . | . . . Times Spotted 36 | . 24 12 Peak Tracking Total 3 | . 3 3 Tactical Retreats 2 | . 2 . Traps | -11 -10 -10 ------- Run | Yrd Mat Sub Traps Triggered . | . . . Indirectly . | . . . Trap Hack Attempts . | . . . Triggered . | . . . Disarmed . | . . . Reprogrammed . | . . . Reused . | . . . Traps Extracted . | . . . Installed . | . . . Triggered . | . . . Machines | -11 -10 -10 ---------- Run | Yrd Mat Sub Machines Disabled 2 | . . 2 Max in Single Turn 1 | . . 1 Machines Repaired . | . . . Machines Dismantled . | . . . Machines Sabotaged . | . . . Overloaded Fab Kills . | . . . Hacking | -11 -10 -10 --------- Run | Yrd Mat Sub Machines Accessed 14 | . 11 3 Terminals 8 | . 8 . Fabricators . | . . . Repair Stations 1 | . 1 . Recycling Units 2 | . 2 . Scanalyzers . | . . . Garrison Access . | . . . Total Hacks 36 | . 29 7 Successful 24 | . 17 7 Failed 11 | . 11 . Catastrophic . | . . . Database Lockouts 1 | . 1 . Manual 18 | . 18 . Terminals 20 | . 20 . Fabricators . | . . . Repair Stations 2 | . 2 . Recycling Units 7 | . 7 . Scanalyzers . | . . . Garrison Access . | . . . Terminal Hacks 12 | . 5 7 Record 5 | . . 5 Robot Analysis 1 | . 1 . Open Door 1 | . . 1 Emergency Access Points 1 | . 1 . Recycling Unit Index 1 | . 1 . Locate Traps 1 | . 1 . Hauler Manifests 1 | . 1 . Proto ID Catalog 1 | . . 1 Fabricator Hacks . | . . . Repair Station Hacks 1 | . 1 . Scan Component 1 | . 1 . Recycling Unit Hacks 2 | . 2 . Retrieve Components 2 | . 2 . Scanalyzer . | . . . Garrison Access Hacks . | . . . Unauthorized Hacks 9 | . 9 . Terminals 7 | . 7 . Botnet 1 | . 1 . Operators 1 | . 1 . Skim 5 | . 5 . Fabricators . | . . . Repair Stations . | . . . Recycling Units 2 | . 2 . Tunnel 2 | . 2 . Scanalyzers . | . . . Garrison Access . | . . . Data Cores Recovered . | . . . Used . | . . . Hacking Detections 8 | . 8 . Full Trace Events . | . . . Feedback Events . | . . . Feedback Blocked . | . . . Robot Schematics Acquired . | . . . Robots Built . | . . . Authchips . | . . . Time . | . . . Total Robot Build Rating . | . . . Part Schematics Acquired . | . . . Parts Built . | . . . Authchips . | . . . Time . | . . . Total Part Build Rating . | . . . Parts Repaired . | . . . Time . | . . . Parts Recycled . | . . . Recycled Matter . | . . . Retrieved Matter . | . . . Retrieved Components 11 | . 11 . Parts Scanalyzed . | . . . Part Schematics Acquired . | . . . Parts Damaged . | . . . Bothacking | -11 -10 -10 ------------ Run | Yrd Mat Sub Used RIF Installer . | . . . Robots Hacked . | . . . Non-combat . | . . . Combat . | . . . Robot Hacks Applied . | . . . Relay Couplers Released . | . . . Fabnet Peak Effective % . | . . . Robots Rewired . | . . . Allies Hacked . | . . . Hacks Repelled . | . . . Allies | -11 -10 -10 -------- Run | Yrd Mat Sub Total Allies . | . . . Largest Group . | . . . Highest-Rated Group . | . . . Highest-Rated Ally . | . . . Total Orders . | . . . Ally Attacks . | . . . Total Damage . | . . . Kills . | . . . Allies Corrupted . | . . . Allies Melted . | . . . Intel | -11 -10 -10 ------- Run | Yrd Mat Sub Active Infowar (turns) 2472 | 13 1649 810 Seismic 2472 | 13 1649 810 Robot Analysis Total 1 | . 1 . Derelict Logs Recovered 1 | . . 1 Drone Launches . | . . . Drone Recoveries . | . . . Exploration | -11 -10 -10 ------------- Run | Yrd Mat Sub Turns Passed 2955 | 23 1873 1059 Spaces Moved 1384 | 14 752 618 Core . | . . . Treads 820 | . 735 85 Legs 31 | 14 17 . Wheels 533 | . . 533 Hover . | . . . Flight . | . . . Fastest Speed 120 | 120 120 120 Average Speed 181 | 120 216 139 Slowest Speed 320 | 120 320 240 Overloaded Moves . | . . . Propulsion Burnouts . | . . . Robots Hopped . | . . . Potential Cave-ins . | . . . Cave-ins Triggered . | . . . Exploration Rate (%) 47 | 2 98 42 Regions Visited 2 Branch Regions 1 Pre-discovered Areas 3 | . 3 . Known Exits Taken 1 | . 1 . Unknown Exits Taken 1 | 1 . . Scrap Searched 1 | . . 1 Spaces Dug 1 | . . 1 Terrain Destroyed 21 | . . 21 Melee . | . . . Projectile 1 | . . 1 AOE 20 | . . 20 Terrain Rammed . | . . . Walls Destroyed . | . . . Machines Disabled . | . . . Actions | -11 -10 -10 --------- Run | Yrd Mat Sub Total 1634 | 16 889 729 Wait 78 | . 55 23 Move 1382 | 13 751 618 Hop . | . . . Pick Up 19 | . 10 9 Fast Attach 3 | 1 1 1 Attach 7 | . 1 6 Detach 2 | . 1 1 Swap 22 | . 8 14 Drop 7 | . 5 2 Fire 110 | 2 53 55 Melee . | . . . Ram . | . . . Kick . | . . . Crush 4 | . 4 . Escape Stasis . | . . . Rewire . | . . . Trap . | . . . Miscellaneous . | . . . Route ------- -11/Scrapyard -10/Materials (discovered 6 exits: [*Mat x3] / [*Min x2] / *Sub) -10/Subcaves (discovered 3 exits: *Mat x2 / [*Scr]) History --------- Turn | Location | Event 7 | -11/Scrapyard | Discovered new exit (range 3) 24 | -11/Scrapyard | Entered Materials 103 | -10/Materials | Discovered new exit (range 10) 222 | -10/Materials | Discovered new exit (range 14) 300 | -10/Materials | Build established: Mutant 353 | -10/Materials | Discovered new exit (range 9) 425 | -10/Materials | Central database locked down 459 | -10/Materials | Discovered new exit (range 3) 660 | -10/Materials | Discovered new exit (range 7) 699 | -10/Materials | Learned location of Subcaves (-10) 769 | -10/Materials | Learned 4 Recycling zone layouts 788 | -10/Materials | Learned Storage trap positions 796 | -10/Materials | Identified exit to Subcaves 796 | -10/Materials | Learned location of 1 exit from Materials 797 | -10/Materials | Learned 4 Subcaves zone layouts 1897 | -10/Materials | Entered Subcaves 1898 | -10/Subcaves | Approached by a straggling Scientist 1898 | -10/Subcaves | Identified exit to Materials 1993 | -10/Subcaves | Core integrity fell below 50% 2224 | -10/Subcaves | Lost 3 parts (2n1u) 2251 | -10/Subcaves | Scientist uncovered a shortcut to Scraptown 2282 | -10/Subcaves | Visited Clippyterm 2286 | -10/Subcaves | Learned Factory fabricator intel 2286 | -10/Subcaves | Learned Factory trap positions 2378 | -10/Subcaves | Build established: Scavenger-Mutant 2642 | -10/Subcaves | Core integrity fell below 20% 2697 | -10/Subcaves | Visited 4L-MR0's lab 2707 | -10/Subcaves | Found Flightbrick 2757 | -10/Subcaves | Learned Materials security intel 2956 | -10/Subcaves | Disturbed a concealed Subdweller 2956 | -10/Subcaves | Destroyed by 2M-U01(R) with Subdweller Laser Last Messages --------------- 02725_ Acquired Multitool. 02727_ Sub. Monowheel shoots sparks and powers down. 02739_ Subatomizers dissect the Disposable Heat Sink, destroying it. 02757_ Acquired derelict log, extracted data. Data stored: Materials security intel. 02806_ Connecting with UFD SUBCON Station... >>Open Door Sealed Heavy Doors opened. 02947_ Searching scrap... 02947_ Found Sub. Monowheel. 02947_ Found Sub. Machine Gun. 02947_ Found 61 Matter. 02951_ Acquired Sub. Monowheel. 02953_ Dropped Lgt. Assault Rifle. 02954_ Acquired Sub. Machine Gun. 02955_ Dropped Lrg. Storage Unit. 02956_ 2M-U01(R) angrily emerges from the Twisted Machinery. Map ----- +----------------------------------------------------+ | ## # ### ### #??????????????????? | | ## ##??????????????????? | | ## ##???????????????????? | | ### ##????????????????????? | | #?## #####?????????????????????? | | # ####### #?????????????????????????? | | ###### ### #### ##????????????????????????? | | ##??## ### ## ##???????????????????????? | | #???# ## #???????????????????????? | | #??## ## #???????????????????????? | | #?## #### ##???????????????????????? | | #?# ##?## ##????????????????????????? | | ??## #?## ##?????????????????????????? | | ?### ### ## ###??????????????????????????? | | ?# #?# ##????????????????????????????? | | ?## ##?# ##????????????????????????????? | | ??# ##?# #?????####???????????????????? | | ??###### ### ######## ##??????????????????? | | ???????# ## ### #??????????????????? | | ???????# # ## #??????????????????? | | ???????# < #???????????????????? | | ???????# ### #???????????????????? | | ???????#####?### # #### ##??????????????????? | | ???????????????## # ##<<## #??????????????????? | | #??????????????# # #<[$<# #??????????????????? | | #??????????????## # #